fUST/lending_fUST_20260127
["ID","MTS","AMOUNT","RATE_DAILY","PERIOD"]
[403709452,1769497840567,-500.0,0.00019538,3]
[403709454,1769497840576,-500.0,0.00019538,3]
[403709456,1769497840586,-500.0,0.00019538,3]
[403709458,1769497840596,-500.0,0.00019538,3]
[403709460,1769497840606,-182.44592417,0.00019538,3]
[403709462,1769497840615,-800.0,0.00019542,2]
[403709464,1769497840624,-4057.37479,0.00019542,7]
[403709466,1769497840633,-157.85653536,0.00019562,30]
[403709468,1769497840643,-3276.8610947,0.00019596,2]
[403709470,1769497840652,-97149.9860979,0.00019596,2]
[403709472,1769497840661,-879.880271,0.00019596,7]
[403709474,1769497840670,-345.33,0.000196,2]
[403709476,1769497840680,-1613.0,0.00019622,2]
[403709478,1769497840689,-3046.291487,0.00019626,7]
[403709480,1769497840699,-590.808859,0.00019626,7]
[403709482,1769497840707,-167.744615,0.00019635,2]
[403709484,1769497840717,-157.64321574,0.00019644,30]
[403709486,1769497840726,-168.0,0.00019646,2]
[403709488,1769497840735,-200.77708875,0.00019656,2]
[403709490,1769497840745,-303.10001603,0.00019656,2]
[403709492,1769497840755,-303.10001603,0.00019656,2]
[403709494,1769497840774,-500.0,0.00019675,3]
[403709497,1769497840797,-500.0,0.00019675,3]
[403709499,1769497840819,-500.0,0.00019675,3]
[403709501,1769497840839,-500.0,0.00019675,3]
[403709502,1769497840848,-426.79437423,0.00019675,3]
[403709504,1769497840858,-500.0,0.00019675,3]
[403709506,1769497840868,-500.0,0.00019675,3]
[403709508,1769497840878,-500.0,0.00019675,3]
[403709510,1769497840889,-157.00325681,0.00019699,30]
[403709512,1769497840899,-1676.769921,0.000197,5]
[403709514,1769497840909,-907.451642,0.000197,2]
[403709517,1769497840920,-907.451642,0.000197,2]
[403709519,1769497840929,-907.451642,0.000197,2]
[403709520,1769497840939,-907.451642,0.000197,2]
[403709523,1769497840950,-186.235497,0.000197,2]
[403709524,1769497840960,-186.235497,0.000197,2]
[403709527,1769497840970,-186.235497,0.000197,2]
[403709528,1769497840981,-186.235497,0.000197,2]
[403709531,1769497840990,-8624.357911,0.000197,2]
[403709532,1769497841000,-8624.357911,0.000197,2]
[403709534,1769497841009,-8624.357911,0.000197,2]
[403709537,1769497841019,-8624.357911,0.000197,2]
[403709539,1769497841028,-151.0,0.000197,2]
[403709540,1769497841038,-1637.56697,0.000197,2]
[403709542,1769497841047,-1637.56697,0.000197,2]
[403709545,1769497841055,-1637.56697,0.000197,2]
[403709547,1769497841065,-1637.56697,0.000197,2]
[403709549,1769497841074,-151.0,0.000197,2]
[403709550,1769497841083,-151.0,0.000197,2]
[403709552,1769497841092,-1000.0,0.0001972,5]
[403709554,1769497841102,-1000.0,0.0001974,5]
[403709556,1769497841110,-1000.0,0.0001976,5]
[403709559,1769497841119,-1290.323323,0.0001976,5]
[403709560,1769497841129,-195.67922461,0.00019768,2]
[403709563,1769497841140,-1000.0,0.0001978,5]
[403709565,1769497841149,-1000.0,0.0001978,5]
[403709566,1769497841158,-500.0,0.00019792,2]
[403709568,1769497841168,-1503.542684,0.000198,7]
[403709571,1769497841177,-1000.0,0.000198,5]
[403709573,1769497841187,-1000.0,0.000198,5]
[403709575,1769497841196,-779.0,0.000198,2]
[403709577,1769497841205,-206.191766,0.00019808,7]
[403709579,1769497841215,-157.00325681,0.00019808,30]
[403709581,1769497841224,-157.64321574,0.00019808,30]
[403709583,1769497841233,-300.81623099,0.00019812,3]
[403709585,1769497841242,-223.92590858,0.00019812,3]
[403709587,1769497841251,-500.0,0.00019812,3]
[403709589,1769497841261,-500.0,0.00019812,3]
[403709590,1769497841270,-500.0,0.00019812,3]
[403709592,1769497841279,-500.0,0.00019812,3]
[403709595,1769497841288,-500.0,0.00019812,3]
[403709597,1769497841298,-1000.0,0.0001982,5]
[403709598,1769497841307,-1000.0,0.0001982,5]
[403709601,1769497841316,-2000.0,0.0001982,2]
[403709602,1769497841325,-168.0,0.00019828,2]
[403709604,1769497841335,-1000.0,0.0001984,5]
[403709606,1769497841344,-1000.0,0.0001984,5]
[403709608,1769497841354,-454.65002405,0.00019845,4]
[403709610,1769497841363,-454.65002405,0.00019845,4]
[403709612,1769497841371,-1000.0,0.0001986,5]
[403709614,1769497841380,-1000.0,0.0001986,5]
[403709616,1769497841389,-1000.0,0.0001988,5]
[403709618,1769497841399,-1000.0,0.0001988,5]
[403709620,1769497841408,-151.0,0.000199,2]
[403709622,1769497841418,-1000.0,0.000199,5]
[403709624,1769497841427,-1000.0,0.000199,5]
[403709627,1769497841437,-10636.66281643,0.000199,2]
[403709628,1769497841446,-164.03931808,0.000199,2]
[403709630,1769497841455,-221.786053,0.0001992,7]
[403709632,1769497841464,-1000.0,0.0001992,5]
[403709634,1769497841473,-1000.0,0.0001992,5]
[403709636,1769497841483,-866.935607,0.0001993,7]
[403709638,1769497841492,-245.68151874,0.0001994,5]
[403709640,1769497841501,-1000.0,0.0001994,5]
[403709643,1769497841510,-1000.0,0.0001994,5]
[403709645,1769497841520,-500.0,0.00019949,3]
[403709647,1769497841531,-500.0,0.00019949,3]
[403709649,1769497841539,-500.0,0.00019949,3]
[403709651,1769497841549,-500.0,0.00019949,3]
[403709653,1769497841558,-500.0,0.00019949,3]
[403709655,1769497841567,-1000.0,0.0001996,5]
[403709657,1769497841576,-1000.0,0.0001996,5]
[403709659,1769497841586,-277.23870486,0.00019978,2]
[403709661,1769497841595,-805.687273,0.0001998,7]
[403709663,1769497841603,-1000.0,0.0001998,5]
[403709665,1769497841612,-1000.0,0.0001998,5]
[403709667,1769497841621,-546.77978582,0.00019982,7]
[403709669,1769497841630,-213.20677993,0.00019982,7]
[403709671,1769497841639,-321.0,0.00019988,2]
[403709672,1769497841648,-457.62768937,0.00019992,2]
[403709674,1769497841657,-823.72984087,0.00019992,2]
[403709676,1769497841666,-1464.40860598,0.00019992,2]
[403709679,1769497841675,-405.26692049,0.00019992,2]
[403709681,1769497841685,-171.99123553,0.00019992,2]
[403709683,1769497841694,-309.58422396,0.00019992,2]
[403709685,1769497841703,-550.3719537,0.00019992,2]
[403709687,1769497841712,-435.33638355,0.00019992,2]
[403709689,1769497841721,-500.0,0.00019999,2]
[403709691,1769497841730,-500.0,0.00019999,2]
[403709693,1769497841739,-500.0,0.00019999,2]
[403709695,1769497841748,-500.0,0.00019999,2]
[403709697,1769497841757,-500.0,0.00019999,2]
[403709699,1769497841766,-500.0,0.00019999,2]
[403709701,1769497841777,-500.0,0.00019999,2]
[403709702,1769497841786,-500.0,0.00019999,2]
[403709704,1769497841795,-500.0,0.00019999,2]
[403709707,1769497841804,-500.0,0.00019999,2]
[403709709,1769497841814,-500.0,0.00019999,2]
[403709711,1769497841824,-500.0,0.00019999,2]
[403709712,1769497841834,-500.0,0.00019999,2]
[403709714,1769497841843,-500.0,0.00019999,2]
[403709717,1769497841854,-500.0,0.00019999,2]
[403709718,1769497841863,-500.0,0.00019999,2]
[403709720,1769497841872,-500.0,0.00019999,2]
[403709722,1769497841881,-500.0,0.00019999,2]
[403709724,1769497841890,-500.0,0.00019999,2]
[403709726,1769497841899,-500.0,0.00019999,2]
[403709728,1769497841908,-500.0,0.00019999,2]
[403709730,1769497841917,-500.0,0.00019999,2]
[403709732,1769497841926,-374.18186284,0.00019999,2]
[403709734,1769497841935,-111010.38242832,0.0002,2]
[403709736,1769497841945,-205.46236793,0.0002,2]
[403709738,1769497841954,-35782.90928153,0.0002,2]
[403709740,1769497841963,-7709.0,0.0002,7]
[403709742,1769497841972,-1200.0,0.0002,5]
[403709744,1769497841981,-18689.05,0.0002,2]
[403709746,1769497841991,-150.0,0.0002,2]
[403709748,1769497842003,-141522.96943655,0.0002,2]
[403709776,1769497842254,-689.30133674,0.0002,2]
[403709778,1769497842265,-55890.40729615,0.0002,2]
[403709784,1769497842306,247.59293005,0.00011227,2]
[403709791,1769497842367,-8133.28985206,0.0002,2]
[403709793,1769497842376,-5431.62,0.0002,2]
[403709795,1769497842385,-13947.9145904,0.0002,2]
[403709797,1769497842394,-14717.74199967,0.0002,2]
[403709799,1769497842403,-254.25098177,0.0002,21]
[403709801,1769497842411,-3930.37516547,0.0002,2]
[403709803,1769497842423,-14786.09761201,0.0002,2]
[403709867,1769497846172,-168.0,0.00018916,2]
[403709868,1769497846183,-22038.69565087,0.0002,2]
[403709869,1769497846192,-10130.54343607,0.0002,20]
[403709870,1769497846201,-49584.20381536,0.0002,2]
[403709871,1769497846248,-2802.25253095,0.0002,2]
[403709873,1769497876483,150.0,7.6e-05,2]
[403709874,1769497876879,199.38,8.29e-05,2]
[403709875,1769497877475,299.07,8.981e-05,2]
[403709876,1769497877880,398.76,9.672e-05,2]
[403709877,1769497878396,498.45,0.00010363,2]
[403709878,1769497878801,598.14,0.00011054,2]
[403709879,1769497965348,-182.6,7.79e-05,2]
[403709880,1769497981372,-365.2,8.498e-05,2]
[403709881,1769497996756,-547.8,9.206e-05,2]
[403709882,1769498050438,-367.01,7.803e-05,2]
[403709883,1769498053196,5000.0,7.725e-05,2]
[403709884,1769498065300,-734.02,8.512e-05,2]
[403709885,1769498081265,-5000.0,9.129e-05,2]
[403709886,1769498081585,-1101.03,9.221e-05,2]
[403709887,1769498081614,-263.23314599,9.56e-05,2]
[403709888,1769498081645,-1468.04,9.931e-05,2]
[403709889,1769498081675,-247.64784378,0.0001,2]
[403709890,1769498081828,-3840.10802046,0.0001,2]
[403709891,1769498115611,-320.3,7.57e-05,2]
[403709892,1769498131596,-640.6,8.258e-05,2]
[403709893,1769498147300,-960.9,8.946e-05,2]
[403709894,1769498163677,1251.6371396,0.0003,120]
[403709895,1769498200726,-295.84,7.88e-05,2]
[403709896,1769498215682,-591.68,8.597e-05,2]
[403709897,1769498231154,-887.52,9.313e-05,2]
[403709899,1769498284706,-273.25,7.763e-05,2]
[403709900,1769498302739,-5000.0,8.383e-05,2]
[403709901,1769498305486,-546.5,8.468e-05,2]
[403709902,1769498305521,-819.74,9.174e-05,2]
[403709903,1769498305553,-1092.99,9.88e-05,2]
[403709904,1769498305582,-81.55,9.93e-05,2]
[403709905,1769498306789,-4918.45,9.93e-05,2]
[403709906,1769498353457,-238.47,7.798e-05,2]
[403709907,1769498369099,-476.94,8.507e-05,2]
[403709908,1769498384988,-715.41,9.216e-05,2]
[403709909,1769498388048,-6762.66716029,0.00034738,120]
[403709910,1769498388084,-500.0,0.00034738,120]
[403709911,1769498388121,-500.0,0.00034738,120]
[403709912,1769498388156,-500.0,0.00034738,120]
[403709913,1769498388190,-500.0,0.00034738,120]
[403709914,1769498388226,-500.0,0.00034738,120]
[403709915,1769498388262,-500.0,0.00034738,120]
[403709916,1769498388295,-554.44552447,0.00034738,120]
[403709917,1769498388328,-500.0,0.00034738,120]
[403709918,1769498388362,-500.0,0.00034738,120]
[403709919,1769498388394,-500.0,0.00034738,120]
[403709920,1769498388426,-500.0,0.00034738,120]
[403709921,1769498388459,-500.0,0.00034738,120]
[403709922,1769498388492,-499.99922,0.00034738,120]
[403709923,1769498388529,-598.35,0.00034738,120]
[403709924,1769498388563,-270.81866541,0.00034738,120]
[403709925,1769498388598,-500.0,0.00034738,120]
[403709926,1769498388632,-500.0,0.00034738,120]
[403709927,1769498388666,-500.0,0.00034738,120]
[403709928,1769498388699,-500.0,0.00034738,120]
[403709929,1769498388735,-500.0,0.00034738,120]
[403709930,1769498388773,-500.0,0.00034738,120]
[403709931,1769498388810,-371.4254067,0.00034738,120]
[403709932,1769498388850,-500.0,0.00034738,120]
[403709933,1769498388882,-535.36,0.00034738,120]
[403709934,1769498388915,-500.0,0.00034738,120]
[403709935,1769498388947,-638.7,0.00034738,120]
[403709936,1769498388980,-198.52226018,0.00034738,120]
[403709937,1769498389012,-306.56285105,0.00034738,120]
[403709938,1769498389046,-500.0,0.00034738,120]
[403709939,1769498389080,-500.0,0.00034738,120]
[403709940,1769498389113,-524.87,0.00034738,120]
[403709941,1769498389144,-159.999999,0.00034738,120]
[403709942,1769498389174,-500.0,0.00034738,120]
[403709943,1769498389205,-631.22662152,0.00034738,120]
[403709944,1769498389239,-500.0,0.00034738,120]
[403709945,1769498389272,-500.0,0.00034738,120]
[403709946,1769498389304,-500.0,0.00034738,120]
[403709947,1769498389337,-314.92217812,0.00034738,120]
[403709948,1769498389371,-500.0,0.00034738,120]
[403709949,1769498389403,-500.0,0.00034738,120]
[403709950,1769498389435,-500.0,0.00034738,120]
[403709951,1769498389466,-363.11,0.00034738,120]
[403709952,1769498389501,-500.0,0.00034738,120]
[403709953,1769498389681,-500.0,0.00034738,120]
[403709954,1769498389722,-500.0,0.00034738,120]
[403709955,1769498389760,-607.63592924,0.00034738,120]
[403709956,1769498389798,-500.0,0.00034738,120]
[403709957,1769498389834,-500.0,0.00034738,120]
[403709958,1769498389869,-500.0,0.00034738,120]
[403709959,1769498389904,-500.0,0.00034738,120]
[403709960,1769498389939,-500.0,0.00034738,120]
[403709961,1769498389978,-225.27209036,0.00034738,120]
[403709962,1769498390015,-500.0,0.00034738,120]
[403709963,1769498390049,-500.0,0.00034738,120]
[403709964,1769498390085,-500.0,0.00034738,120]
[403709965,1769498390120,-302.01,0.00034738,120]
[403709966,1769498390153,-500.0,0.00034738,120]
[403709967,1769498390188,-186.47,0.00034738,120]
[403709968,1769498390221,-500.0,0.00034738,120]
[403709969,1769498390256,-293.0,0.00034738,120]
[403709970,1769498390289,-500.0,0.00034738,120]
[403709971,1769498390320,-500.0,0.00034738,120]
[403709972,1769498390352,-500.0,0.00034738,120]
[403709973,1769498390383,-500.0,0.00034738,120]
[403709974,1769498390415,-500.0,0.00034738,120]
[403709975,1769498390449,-462.49592943,0.00034738,120]
[403709976,1769498390483,-500.0,0.00034738,120]
[403709977,1769498390519,-500.0,0.00034738,120]
[403709978,1769498390551,-500.0,0.00034738,120]
[403709979,1769498390584,-500.0,0.00034738,120]
[403709980,1769498390615,-500.0,0.00034738,120]
[403709981,1769498390646,-500.0,0.00034738,120]
[403709982,1769498390676,-500.0,0.00034738,120]
[403709983,1769498390708,-500.0,0.00034738,120]
[403709984,1769498390739,-500.0,0.00034738,120]
[403709985,1769498390772,-500.0,0.00034738,120]
[403709986,1769498390808,-500.0,0.00034738,120]
[403709987,1769498390843,-500.0,0.00034738,120]
[403709988,1769498390877,-405.55223472,0.00034738,120]
[403709989,1769498390908,-442.4630568,0.00034738,120]
[403709990,1769498390939,-500.0,0.00034738,120]
[403709991,1769498390970,-500.0,0.00034738,120]
[403709992,1769498390999,-500.0,0.00034738,120]
[403709993,1769498391030,-500.0,0.00034738,120]
[403709994,1769498391063,-500.0,0.00034738,120]
[403709995,1769498391100,-500.0,0.00034738,120]
[403709996,1769498391135,-500.0,0.00034738,120]
[403709997,1769498391170,-573.42,0.00034738,120]
[403709998,1769498391200,-500.0,0.00034738,120]
[403709999,1769498391233,-500.0,0.00034738,120]
[403710000,1769498391266,-500.0,0.00034738,120]
[403710001,1769498391297,-500.0,0.00034738,120]
[403710002,1769498391328,-500.0,0.00034738,120]
[403710003,1769498391358,-448.20925339,0.00034738,120]
[403710004,1769498391389,-500.0,0.00034738,120]
[403710005,1769498391421,-500.0,0.00034738,120]
[403710006,1769498391453,-500.0,0.00034738,120]
[403710007,1769498391483,-500.0,0.00034738,120]
[403710008,1769498391517,-500.0,0.00034738,120]
[403710009,1769498391551,-266.79,0.00034738,120]
[403710010,1769498391584,-500.0,0.00034738,120]
[403710011,1769498391618,-500.0,0.00034738,120]
[403710012,1769498391652,-612.09,0.00034738,120]
[403710013,1769498391686,-500.0,0.00034738,120]
[403710014,1769498391724,-500.0,0.00034738,120]
[403710015,1769498391762,-492.22,0.00034738,120]
[403710016,1769498391800,-500.0,0.00034738,120]
[403710017,1769498391832,-473.87538788,0.00034738,120]
[403710018,1769498391864,-500.0,0.00034738,120]
[403710019,1769498391896,-356.5785486,0.00034738,120]
[403710020,1769498391928,-500.0,0.00034738,120]
[403710021,1769498391963,-498.46770521,0.00034738,120]
[403710022,1769498391995,-566.16272174,0.00034738,120]
[403710023,1769498392027,-500.0,0.00034738,120]
[403710024,1769498392061,-500.0,0.00034738,120]
[403710025,1769498392093,-500.0,0.00034738,120]
[403710026,1769498392127,-500.0,0.00034738,120]
[403710027,1769498392160,-500.0,0.00034738,120]
[403710028,1769498392190,-500.0,0.00034738,120]
[403710029,1769498392221,-500.0,0.00034738,120]
[403710030,1769498392252,-500.0,0.00034738,120]
[403710031,1769498392282,-527.58164933,0.00034738,120]
[403710032,1769498392313,-606.36701293,0.00034738,120]
[403710033,1769498392344,-500.0,0.00034738,120]
[403710034,1769498392376,-521.91587107,0.00034738,120]
[403710035,1769498392412,-300.0,0.00034738,120]
[403710036,1769498392445,-500.0,0.00034738,120]
[403710037,1769498392479,-500.0,0.00034738,120]
[403710038,1769498392514,-500.0,0.00034738,120]
[403710039,1769498392549,-500.0,0.00034738,120]
[403710040,1769498392585,-500.0,0.00034738,120]
[403710041,1769498392621,-475.82370852,0.00034738,120]
[403710042,1769498392656,-423.2588329,0.00034738,120]
[403710043,1769498392693,-500.0,0.00034738,120]
[403710044,1769498392727,-209.76621947,0.00034738,120]
[403710045,1769498392763,-500.0,0.00034738,120]
[403710046,1769498392799,-500.0,0.00034738,120]
[403710047,1769498392946,-500.0,0.00034738,120]
[403710048,1769498392987,-500.0,0.00034738,120]
[403710049,1769498393022,-188.26226345,0.00034738,120]
[403710050,1769498393056,-500.0,0.00034738,120]
[403710051,1769498393089,-500.0,0.00034738,120]
[403710052,1769498393124,-500.0,0.00034738,120]
[403710053,1769498393158,-268.6,0.00034738,120]
[403710054,1769498393194,-500.0,0.00034738,120]
[403710055,1769498393228,-500.0,0.00034738,120]
[403710056,1769498393262,-157.86,0.00034738,120]
[403710057,1769498393296,-500.0,0.00034738,120]
[403710058,1769498393330,-500.0,0.00034738,120]
[403710059,1769498393366,-266.71320834,0.00034738,120]
[403710060,1769498393410,-500.0,0.00034738,120]
[403710061,1769498393444,-500.0,0.00034738,120]
[403710062,1769498393480,-500.0,0.00034738,120]
[403710063,1769498393514,-500.0,0.00034738,120]
[403710064,1769498393548,-500.0,0.00034738,120]
[403710065,1769498393581,-566.48701073,0.00034738,120]
[403710066,1769498393616,-500.0,0.00034738,120]
[403710067,1769498393650,-500.0,0.00034738,120]
[403710068,1769498393686,-500.0,0.00034738,120]
[403710069,1769498393723,-500.0,0.00034738,120]
[403710070,1769498393758,-500.0,0.00034738,120]
[403710071,1769498393791,-500.0,0.00034738,120]
[403710072,1769498393826,-500.0,0.00034738,120]
[403710073,1769498393860,-500.0,0.00034738,120]
[403710074,1769498393896,-500.0,0.00034738,120]
[403710075,1769498393930,-500.0,0.00034738,120]
[403710076,1769498393967,-500.0,0.00034738,120]
[403710077,1769498394002,-500.0,0.00034738,120]
[403710078,1769498394039,-500.0,0.00034738,120]
[403710079,1769498394074,-500.0,0.00034738,120]
[403710080,1769498394115,-500.0,0.00034738,120]
[403710081,1769498394150,-500.0,0.00034738,120]
[403710082,1769498394183,-500.0,0.00034738,120]
[403710083,1769498394221,-500.0,0.00034738,120]
[403710084,1769498394256,-500.0,0.00034738,120]
[403710085,1769498394292,-500.0,0.00034738,120]
[403710086,1769498394328,-578.86140278,0.00034738,120]
[403710087,1769498394364,-500.0,0.00034738,120]
[403710088,1769498394401,-500.0,0.00034738,120]
[403710089,1769498394437,-500.0,0.00034738,120]
[403710090,1769498394472,-500.0,0.00034738,120]
[403710091,1769498394507,-500.0,0.00034738,120]
[403710092,1769498394542,-500.0,0.00034738,120]
[403710093,1769498394578,-500.0,0.00034738,120]
[403710094,1769498394612,-536.40816507,0.00034738,120]
[403710095,1769498394647,-500.0,0.00034738,120]
[403710096,1769498394681,-500.0,0.00034738,120]
[403710097,1769498394716,-500.0,0.00034738,120]
[403710098,1769498394753,-500.0,0.00034738,120]
[403710099,1769498394790,-415.73317403,0.00034738,120]
[403710100,1769498394825,-500.0,0.00034738,120]
[403710101,1769498394859,-500.0,0.00034738,120]
[403710102,1769498394897,-500.0,0.00034738,120]
[403710103,1769498394933,-500.0,0.00034738,120]
[403710104,1769498394970,-500.0,0.00034738,120]
[403710105,1769498395011,-500.0,0.00034738,120]
[403710106,1769498395048,-500.0,0.00034738,120]
[403710107,1769498395087,-500.0,0.00034738,120]
[403710108,1769498395125,-500.0,0.00034738,120]
[403710109,1769498395160,-500.0,0.00034738,120]
[403710110,1769498395195,-500.0,0.00034738,120]
[403710111,1769498395231,-500.0,0.00034738,120]
[403710112,1769498395267,-500.0,0.00034738,120]
[403710113,1769498395303,-500.0,0.00034738,120]
[403710114,1769498395337,-500.0,0.00034738,120]
[403710115,1769498395370,-500.0,0.00034738,120]
[403710116,1769498395405,-500.0,0.00034738,120]
[403710117,1769498395440,-500.0,0.00034738,120]
[403710118,1769498395474,-500.0,0.00034738,120]
[403710119,1769498395510,-500.0,0.00034738,120]
[403710120,1769498395546,-500.0,0.00034738,120]
[403710121,1769498395584,-500.0,0.00034738,120]
[403710122,1769498395624,-500.0,0.00034738,120]
[403710123,1769498395660,-500.0,0.00034738,120]
[403710124,1769498395698,-500.0,0.00034738,120]
[403710125,1769498395734,-450.88,0.00034738,120]
[403710126,1769498395770,-500.0,0.00034738,120]
[403710127,1769498395806,-500.0,0.00034738,120]
[403710128,1769498395843,-501.87270236,0.00034738,120]
[403710129,1769498395877,-501.45221869,0.00034738,120]
[403710130,1769498395911,-500.0,0.00034738,120]
[403710131,1769498395945,-500.0,0.00034738,120]
[403710132,1769498395981,-500.0,0.00034738,120]
[403710133,1769498396015,-500.0,0.00034738,120]
[403710134,1769498396050,-500.0,0.00034738,120]
[403710135,1769498396084,-500.0,0.00034738,120]
[403710136,1769498396116,-500.0,0.00034738,120]
[403710137,1769498396150,-500.0,0.00034738,120]
[403710138,1769498396184,-500.0,0.00034738,120]
[403710139,1769498396218,-500.0,0.00034738,120]
[403710140,1769498396254,-500.0,0.00034738,120]
[403710141,1769498396448,-500.0,0.00034738,120]
[403710142,1769498396486,-500.0,0.00034738,120]
[403710143,1769498396522,-442.51860617,0.00034738,120]
[403710144,1769498396558,-586.58,0.00034738,120]
[403710145,1769498396602,-500.0,0.00034738,120]
[403710146,1769498396642,-500.0,0.00034738,120]
[403710147,1769498396680,-500.0,0.00034738,120]
[403710148,1769498396715,-500.0,0.00034738,120]
[403710149,1769498396753,-500.0,0.00034738,120]
[403710150,1769498396788,-500.0,0.00034738,120]
[403710151,1769498396822,-500.0,0.00034738,120]
[403710152,1769498396858,-500.0,0.00034738,120]
[403710153,1769498396893,-500.0,0.00034738,120]
[403710154,1769498396928,-500.0,0.00034738,120]
[403710155,1769498396964,-500.0,0.00034738,120]
[403710156,1769498397002,-500.0,0.00034738,120]
[403710157,1769498397039,-198.92093317,0.00034738,120]
[403710158,1769498397080,-500.0,0.00034738,120]
[403710159,1769498397116,-500.0,0.00034738,120]
[403710160,1769498397153,-500.0,0.00034738,120]
[403710161,1769498397194,-500.0,0.00034738,120]
[403710162,1769498397230,-500.0,0.00034738,120]
[403710163,1769498397265,-500.0,0.00034738,120]
[403710164,1769498397299,-500.0,0.00034738,120]
[403710165,1769498397334,-500.0,0.00034738,120]
[403710166,1769498397368,-500.0,0.00034738,120]
[403710167,1769498397404,-500.0,0.00034738,120]
[403710168,1769498397447,-500.0,0.00034738,120]
[403710169,1769498397485,-500.0,0.00034738,120]
[403710170,1769498397522,-500.0,0.00034738,120]
[403710171,1769498397559,-500.0,0.00034738,120]
[403710172,1769498397596,-500.0,0.00034738,120]
[403710173,1769498397635,-500.0,0.00034738,120]
[403710174,1769498397678,-500.0,0.00034738,120]
[403710175,1769498397716,-500.0,0.00034738,120]
[403710176,1769498397752,-500.0,0.00034738,120]
[403710177,1769498397790,-500.0,0.00034738,120]
[403710178,1769498397827,-500.0,0.00034738,120]
[403710179,1769498397862,-500.0,0.00034738,120]
[403710180,1769498397898,-500.0,0.00034738,120]
[403710181,1769498397932,-500.0,0.00034738,120]
[403710182,1769498397969,-500.0,0.00034738,120]
[403710183,1769498398005,-500.0,0.00034738,120]
[403710184,1769498398042,-500.0,0.00034738,120]
[403710185,1769498398077,-500.0,0.00034738,120]
[403710186,1769498398110,-500.0,0.00034738,120]
[403710187,1769498398143,-500.0,0.00034738,120]
[403710188,1769498398184,-500.0,0.00034738,120]
[403710189,1769498398221,-500.0,0.00034738,120]
[403710190,1769498398254,-242.01612595,0.00034738,120]
[403710191,1769498398286,-500.0,0.00034738,120]
[403710192,1769498398319,-500.0,0.00034738,120]
[403710193,1769498398353,-502.01715772,0.00034738,120]
[403710194,1769498398386,-500.0,0.00034738,120]
[403710195,1769498398419,-500.0,0.00034738,120]
[403710196,1769498398453,-500.0,0.00034738,120]
[403710197,1769498398487,-500.0,0.00034738,120]
[403710198,1769498398520,-200.0,0.00034738,120]
[403710199,1769498398553,-500.0,0.00034738,120]
[403710200,1769498398586,-500.0,0.00034738,120]
[403710201,1769498398618,-500.0,0.00034738,120]
[403710202,1769498398649,-261.84239243,0.00034738,120]
[403710203,1769498398683,-500.0,0.00034738,120]
[403710204,1769498398718,-500.0,0.00034738,120]
[403710205,1769498398755,-500.0,0.00034738,120]
[403710206,1769498398791,-500.0,0.00034738,120]
[403710207,1769498398828,-500.0,0.00034738,120]
[403710208,1769498398862,-500.0,0.00034738,120]
[403710209,1769498398898,-500.0,0.00034738,120]